fUST/lending_fUST_20240819
["ID","MTS","AMOUNT","RATE_DAILY","PERIOD"]
[335291232,1724075452931,-685.99,0.00016712,2]
[335291233,1724075452942,-371.845335,0.00016712,2]
[335291234,1724075452952,-500.0,0.00016712,2]
[335291235,1724075452962,-500.0,0.00016712,2]
[335291236,1724075452973,-861.02,0.00016712,2]
[335291237,1724075452983,-500.0,0.00016712,2]
[335291238,1724075452994,-500.0,0.00016712,2]
[335291239,1724075453004,-500.0,0.00016712,2]
[335291240,1724075453014,-500.0,0.00016712,2]
[335291241,1724075453024,-1201.3,0.00016712,2]
[335291242,1724075453034,-500.0,0.00016712,2]
[335291243,1724075453044,-500.0,0.00016712,2]
[335291244,1724075453054,-513.81,0.00016712,2]
[335291245,1724075453064,-151.0,0.00016712,2]
[335291246,1724075453074,-500.0,0.00016712,2]
[335291247,1724075453083,-458.52393766,0.00016712,2]
[335291248,1724075453093,-541.641508,0.00016712,2]
[335291249,1724075453103,-500.0,0.00016712,2]
[335291250,1724075453112,-500.0,0.00016712,2]
[335291251,1724075453122,-243.405291,0.00016712,2]
[335291252,1724075453132,-502.49454523,0.00016712,2]
[335291253,1724075453142,-541.641508,0.00016712,2]
[335291254,1724075453152,-500.0,0.00016712,2]
[335291255,1724075453162,-500.0,0.00016712,2]
[335291256,1724075453172,-500.0,0.00016712,2]
[335291257,1724075453182,-500.0,0.00016712,2]
[335291258,1724075453192,-500.0,0.00016712,2]
[335291259,1724075453201,-500.0,0.00016712,2]
[335291260,1724075453211,-640.53157856,0.00016712,2]
[335291261,1724075453221,-500.0,0.00016712,2]
[335291262,1724075453232,-500.0,0.00016712,2]
[335291263,1724075453242,-500.0,0.00016712,2]
[335291264,1724075453252,-227.52422754,0.00016712,2]
[335291265,1724075453261,-500.0,0.00016712,2]
[335291266,1724075453271,-500.0,0.00016712,2]
[335291267,1724075453281,-500.0,0.00016712,2]
[335291268,1724075453292,-500.0,0.00016712,2]
[335291269,1724075453305,-417.03474701,0.00016712,2]
[335291270,1724075453315,-500.0,0.00016712,2]
[335291271,1724075453325,-500.0,0.00016712,2]
[335291272,1724075453335,-500.0,0.00016712,2]
[335291273,1724075453345,-735.01,0.00016712,2]
[335291274,1724075453355,-500.0,0.00016712,2]
[335291275,1724075453364,-500.0,0.00016712,2]
[335291276,1724075453375,-500.0,0.00016712,2]
[335291277,1724075453386,-151.0,0.00016712,2]
[335291278,1724075453396,-500.0,0.00016712,2]
[335291279,1724075453406,-500.0,0.00016712,2]
[335291280,1724075453416,-500.0,0.00016712,2]
[335291281,1724075453426,-583.27,0.00016712,2]
[335291282,1724075453436,-500.0,0.00016712,2]
[335291283,1724075453447,-500.0,0.00016712,2]
[335291284,1724075453456,-500.0,0.00016712,2]
[335291285,1724075453467,-500.0,0.00016712,2]
[335291286,1724075453477,-500.0,0.00016712,2]
[335291287,1724075453487,-500.0,0.00016712,2]
[335291288,1724075453496,-500.0,0.00016712,2]
[335291289,1724075453505,-578.85446169,0.00016712,2]
[335291290,1724075453514,-500.0,0.00016712,2]
[335291291,1724075453524,-500.0,0.00016712,2]
[335291292,1724075453534,-744.53,0.00016712,2]
[335291293,1724075453544,-570.65,0.00016712,2]
[335291294,1724075453556,-500.0,0.00016712,2]
[335291295,1724075453566,-500.0,0.00016712,2]
[335291296,1724075453575,-692.68,0.00016712,2]
[335291297,1724075453585,-151.0,0.00016712,2]
[335291298,1724075453595,-500.0,0.00016712,2]
[335291299,1724075453606,-500.0,0.00016712,2]
[335291300,1724075453615,-500.0,0.00016712,2]
[335291301,1724075453628,-500.0,0.00016712,2]
[335291302,1724075453638,-243.412398,0.00016712,2]
[335291303,1724075453648,-500.0,0.00016712,2]
[335291304,1724075453658,-327.647787,0.00016712,2]
[335291305,1724075453668,-327.647787,0.00016712,2]
[335291306,1724075453678,-504.48306092,0.00016712,2]
[335291307,1724075453688,-500.0,0.00016712,2]
[335291308,1724075453699,-500.0,0.00016712,2]
[335291309,1724075453709,-1414.77,0.00016712,2]
[335291310,1724075453719,-500.0,0.00016712,2]
[335291311,1724075453731,-500.0,0.00016712,2]
[335291312,1724075453742,-534.87753656,0.00016712,2]
[335291313,1724075453752,-500.0,0.00016712,2]
[335291314,1724075453762,-500.0,0.00016712,2]
[335291315,1724075453772,-150.0,0.00016773,2]
[335291316,1724075453782,-164897.66737393,0.000168,2]
[335291317,1724075453793,-216.65088,0.000168,2]
[335291318,1724075453804,-341.861247,0.000168,2]
[335291319,1724075453814,-341.861247,0.000168,2]
[335291320,1724075453824,-151.0,0.000168,2]
[335291321,1724075453834,-151.0,0.000168,2]
[335291322,1724075453845,-151.0,0.000168,2]
[335291323,1724075453855,-151.0,0.000168,2]
[335291324,1724075453865,-423.641137,0.000168,2]
[335291325,1724075453875,-423.641137,0.000168,2]
[335291326,1724075453885,-151.0,0.000168,2]
[335291327,1724075453895,-313.067006,0.000168,2]
[335291328,1724075453905,-313.067006,0.000168,2]
[335291329,1724075453916,-225.807413,0.000168,2]
[335291330,1724075453927,-225.807413,0.000168,2]
[335291331,1724075453937,-183.907469,0.000168,2]
[335291332,1724075453947,-686.856192,0.000168,2]
[335291333,1724075453957,-686.856192,0.000168,2]
[335291334,1724075453967,-183.907469,0.000168,2]
[335291335,1724075453979,-371.845335,0.000168,2]
[335291336,1724075453989,-371.845335,0.000168,2]
[335291337,1724075453999,-151.0,0.000168,2]
[335291338,1724075454009,-541.641508,0.000168,2]
[335291339,1724075454018,-541.641508,0.000168,2]
[335291340,1724075454029,-151.0,0.000168,2]
[335291341,1724075454039,-151.0,0.000168,2]
[335291342,1724075454048,-327.647787,0.000168,2]
[335291343,1724075454058,-327.647787,0.000168,2]
[335291344,1724075454068,-465.67098954,0.00016924,2]
[335291345,1724075454078,-315.14076299,0.00016986,2]
[335291346,1724075454087,-500.0,0.00016986,2]
[335291347,1724075454097,-503.29215947,0.00016986,2]
[335291348,1724075454107,-500.0,0.00016986,2]
[335291349,1724075454118,-500.0,0.00016986,2]
[335291350,1724075454129,-500.0,0.00016986,2]
[335291351,1724075454138,-500.0,0.00016986,2]
[335291352,1724075454148,-500.0,0.00016986,2]
[335291353,1724075454159,-500.0,0.00016986,2]
[335291354,1724075454168,-500.0,0.00016986,2]
[335291355,1724075454178,-500.0,0.00016986,2]
[335291356,1724075454188,-500.0,0.00016986,2]
[335291357,1724075454198,-502.54849087,0.00016986,2]
[335291358,1724075454208,-500.0,0.00016986,2]
[335291359,1724075454218,-500.0,0.00016986,2]
[335291360,1724075454229,-170.51772365,0.00016986,2]
[335291361,1724075454240,-500.0,0.00016986,2]
[335291362,1724075454250,-500.0,0.00016986,2]
[335291363,1724075454260,-500.0,0.00016986,2]
[335291364,1724075454270,-500.0,0.00016986,2]
[335291365,1724075454280,-500.0,0.00016986,2]
[335291366,1724075454290,-500.0,0.00016986,2]
[335291367,1724075454303,-500.0,0.00016986,2]
[335291368,1724075454313,-500.0,0.00016986,2]
[335291369,1724075454323,-500.0,0.00016986,2]
[335291370,1724075454334,-500.0,0.00016986,2]
[335291371,1724075454344,-500.0,0.00016986,2]
[335291372,1724075454354,-500.0,0.00016986,2]
[335291373,1724075454364,-500.0,0.00016986,2]
[335291374,1724075454375,-500.0,0.00016986,2]
[335291375,1724075454385,-500.0,0.00016986,2]
[335291376,1724075454395,-248.02333173,0.00016986,2]
[335291377,1724075454405,-500.0,0.00016986,2]
[335291378,1724075454416,-500.0,0.00016986,2]
[335291379,1724075454429,-500.0,0.00016986,2]
[335291380,1724075454439,-500.0,0.00016986,2]
[335291381,1724075454449,-500.0,0.00016986,2]
[335291382,1724075454461,-500.0,0.00016986,2]
[335291383,1724075454471,-527.06,0.00016986,2]
[335291384,1724075454482,-500.0,0.00016986,2]
[335291385,1724075454491,-500.0,0.00016986,2]
[335291386,1724075454502,-500.0,0.00016986,2]
[335291387,1724075454512,-500.0,0.00016986,2]
[335291388,1724075454521,-500.0,0.00016986,2]
[335291389,1724075454532,-500.0,0.00016986,2]
[335291390,1724075454542,-500.0,0.00016986,2]
[335291391,1724075454554,-500.0,0.00016986,2]
[335291392,1724075454563,-500.0,0.00016986,2]
[335291393,1724075454573,-500.0,0.00016986,2]
[335291394,1724075454583,-500.0,0.00016986,2]
[335291395,1724075454593,-500.0,0.00016986,2]
[335291396,1724075454603,-500.0,0.00016986,2]
[335291397,1724075454614,-500.0,0.00016986,2]
[335291398,1724075454624,-500.0,0.00016986,2]
[335291399,1724075454634,-500.0,0.00016986,2]
[335291400,1724075454644,-500.0,0.00016986,2]
[335291401,1724075454655,-500.0,0.00016986,2]
[335291402,1724075454665,-500.0,0.00016986,2]
[335291403,1724075454676,-500.0,0.00016986,2]
[335291404,1724075454687,-500.0,0.00016986,2]
[335291405,1724075454698,-500.0,0.00016986,2]
[335291406,1724075454708,-500.0,0.00016986,2]
[335291407,1724075454718,-765.7,0.00016986,2]
[335291408,1724075454738,-500.0,0.00016986,2]
[335291409,1724075454749,-500.0,0.00016986,2]
[335291410,1724075454916,-500.0,0.00016986,2]
[335291411,1724075454948,-535.90049583,0.00016986,2]
[335291412,1724075454958,-500.0,0.00016986,2]
[335291413,1724075454968,-332.71733308,0.00016986,2]
[335291414,1724075454987,-500.0,0.00016986,2]
[335291415,1724075455000,-500.0,0.00016986,2]
[335291416,1724075455009,-530.10838452,0.00016986,2]
[335291417,1724075455019,-500.0,0.00016986,2]
[335291418,1724075455028,-500.0,0.00016986,2]
[335291419,1724075455038,-500.0,0.00016986,2]
[335291420,1724075455048,-521.60346343,0.00016986,2]
[335291421,1724075455057,-841.38,0.00016986,2]
[335291422,1724075455067,-500.0,0.00016986,2]
[335291423,1724075455076,-500.0,0.00016986,2]
[335291424,1724075455085,-521.11,0.00016986,2]
[335291425,1724075455094,-500.0,0.00016986,2]
[335291426,1724075455103,-500.0,0.00016986,2]
[335291427,1724075455111,-500.0,0.00016986,2]
[335291428,1724075455121,-500.0,0.00016986,2]
[335291429,1724075455131,-500.0,0.00016986,2]
[335291430,1724075455141,-500.0,0.00016986,2]
[335291431,1724075455150,-500.0,0.00016986,2]
[335291432,1724075455160,-500.0,0.00016986,2]
[335291433,1724075455169,-415.16605678,0.00016986,2]
[335291434,1724075455179,-1418.68,0.00016986,2]
[335291435,1724075455189,-500.0,0.00016986,2]
[335291436,1724075455198,-500.0,0.00016986,2]
[335291437,1724075455209,-500.0,0.00016986,2]
[335291438,1724075455218,-571.1,0.00016986,2]
[335291439,1724075455231,-576.12424059,0.00016986,2]
[335291440,1724075455240,-634.00364822,0.00016986,2]
[335291441,1724075455250,-500.0,0.00016986,2]
[335291442,1724075455260,-500.0,0.00016986,2]
[335291443,1724075455269,-500.0,0.00016986,2]
[335291444,1724075455279,-500.0,0.00016986,2]
[335291445,1724075455289,-503.10713117,0.00016986,2]
[335291446,1724075455301,-500.0,0.00016986,2]
[335291447,1724075455312,-500.0,0.00016986,2]
[335291448,1724075455323,-500.0,0.00016986,2]
[335291449,1724075455332,-500.0,0.00016986,2]
[335291450,1724075455342,-500.0,0.00016986,2]
[335291451,1724075455351,-668.62,0.00016986,2]
[335291452,1724075455361,-341.861247,0.00016986,2]
[335291453,1724075455370,-341.861247,0.00016986,2]
[335291454,1724075455382,-500.0,0.00016986,2]
[335291455,1724075455392,-775.16,0.00016986,2]
[335291456,1724075455401,-510.40968345,0.00016986,2]
[335291457,1724075455411,-500.0,0.00016986,2]
[335291458,1724075455421,-500.0,0.00016986,2]
[335291459,1724075455430,-500.0,0.00016986,2]
[335291460,1724075455441,-500.0,0.00016986,2]
[335291461,1724075455451,-500.0,0.00016986,2]
[335291462,1724075455460,-338.80424106,0.00016986,2]
[335291463,1724075455471,-500.0,0.00016986,2]
[335291464,1724075455483,-632.17,0.00016986,2]
[335291465,1724075455492,-500.0,0.00016986,2]
[335291466,1724075455503,-500.0,0.00016986,2]
[335291467,1724075455513,-500.0,0.00016986,2]
[335291468,1724075455523,-500.0,0.00016986,2]
[335291469,1724075455533,-500.0,0.00016986,2]
[335291470,1724075455543,-514.3189391,0.00016986,2]
[335291471,1724075455552,-500.0,0.00016986,2]
[335291472,1724075455561,-500.0,0.00016986,2]
[335291473,1724075455571,-500.0,0.00016986,2]
[335291474,1724075455581,-500.0,0.00016986,2]
[335291475,1724075455591,-704.13,0.00016986,2]
[335291476,1724075455601,-500.0,0.00016986,2]
[335291477,1724075455610,-500.0,0.00016986,2]
[335291478,1724075455621,-500.0,0.00016986,2]
[335291479,1724075455630,-151.0,0.00016986,2]
[335291480,1724075455640,-310.17280305,0.00016986,2]
[335291481,1724075455650,-500.0,0.00016986,2]
[335291482,1724075455660,-151.0,0.00016986,2]
[335291483,1724075455669,-500.0,0.00016986,2]
[335291484,1724075455679,-633.28,0.00016986,2]
[335291485,1724075455689,-567.45,0.00016986,2]
[335291486,1724075455698,-500.0,0.00016986,2]
[335291487,1724075455707,-1950.59,0.00016986,2]
[335291488,1724075455717,-500.0,0.00016986,2]
[335291489,1724075455729,-500.0,0.00016986,2]
[335291490,1724075455739,-500.0,0.00016986,2]
[335291491,1724075455749,-500.0,0.00016986,2]
[335291492,1724075455759,-504.21034984,0.00016986,2]
[335291493,1724075455769,-500.0,0.00016986,2]
[335291494,1724075455778,-844.67,0.00016986,2]
[335291495,1724075455788,-500.0,0.00016986,2]
[335291496,1724075455798,-500.0,0.00016986,2]
[335291497,1724075455808,-500.0,0.00016986,2]
[335291498,1724075455818,-500.0,0.00016986,2]
[335291499,1724075455828,-500.0,0.00016986,2]
[335291500,1724075455838,-500.0,0.00016986,2]
[335291501,1724075455848,-500.0,0.00016986,2]
[335291502,1724075455859,-654.14,0.00016986,2]
[335291503,1724075455869,-500.0,0.00016986,2]
[335291504,1724075455879,-500.0,0.00016986,2]
[335291505,1724075455889,-500.0,0.00016986,2]
[335291506,1724075455899,-151.0,0.00016986,2]
[335291507,1724075455909,-500.0,0.00016986,2]
[335291508,1724075455919,-500.0,0.00016986,2]
[335291509,1724075455929,-500.0,0.00016986,2]
[335291510,1724075455939,-500.0,0.00016986,2]
[335291511,1724075455948,-500.0,0.00016986,2]
[335291512,1724075455958,-500.0,0.00016986,2]
[335291513,1724075455967,-500.0,0.00016986,2]
[335291514,1724075455979,-541.93,0.00016986,2]
[335291515,1724075455989,-562.81,0.00016986,2]
[335291516,1724075455999,-500.0,0.00016986,2]
[335291517,1724075456009,-500.0,0.00016986,2]
[335291518,1724075456019,-500.0,0.00016986,2]
[335291519,1724075456029,-500.0,0.00016986,2]
[335291520,1724075456038,-500.0,0.00016986,2]
[335291521,1724075456047,-500.0,0.00016986,2]
[335291522,1724075456057,-500.0,0.00016986,2]
[335291523,1724075456066,-500.0,0.00016986,2]
[335291524,1724075456075,-500.0,0.00016986,2]
[335291525,1724075456085,-500.0,0.00016986,2]
[335291526,1724075456095,-500.0,0.00016986,2]
[335291527,1724075456105,-500.0,0.00016986,2]
[335291528,1724075456114,-500.0,0.00016986,2]
[335291529,1724075456124,-154.21227736,0.00016986,2]
[335291530,1724075456133,-785.34,0.00016986,2]
[335291531,1724075456143,-500.0,0.00016986,2]
[335291532,1724075456152,-500.0,0.00016986,2]
[335291533,1724075456162,-500.0,0.00016986,2]
[335291534,1724075456171,-500.0,0.00016986,2]
[335291535,1724075456181,-500.0,0.00016986,2]
[335291536,1724075456190,-500.0,0.00016986,2]
[335291537,1724075456200,-500.0,0.00016986,2]
[335291538,1724075456209,-500.0,0.00016986,2]
[335291539,1724075456219,-646.09,0.00016986,2]
[335291540,1724075456230,-500.0,0.00016986,2]
[335291541,1724075456239,-500.0,0.00016986,2]
[335291542,1724075456249,-500.0,0.00016986,2]
[335291543,1724075456258,-500.0,0.00016986,2]
[335291544,1724075456267,-264.73364959,0.00016986,2]
[335291545,1724075456276,-500.0,0.00016986,2]
[335291546,1724075456286,-500.0,0.00016986,2]
[335291547,1724075456296,-500.0,0.00016986,2]
[335291548,1724075456309,-500.0,0.00016986,2]
[335291549,1724075456318,-500.0,0.00016986,2]
[335291550,1724075456327,-500.0,0.00016986,2]
[335291551,1724075456337,-500.0,0.00016986,2]
[335291552,1724075456347,-500.0,0.00016986,2]
[335291553,1724075456356,-646.12,0.00016986,2]
[335291554,1724075456366,-500.0,0.00016986,2]
[335291555,1724075456376,-500.0,0.00016986,2]
[335291556,1724075456386,-542.28723116,0.00016986,2]
[335291557,1724075456396,-416.72140757,0.00016986,2]
[335291558,1724075456406,-500.0,0.00016986,2]
[335291559,1724075456415,-500.0,0.00016986,2]
[335291560,1724075456425,-500.0,0.00016986,2]
[335291561,1724075456434,-500.0,0.00016986,2]
[335291562,1724075456444,-500.0,0.00016986,2]
[335291563,1724075456454,-500.0,0.00016986,2]
[335291564,1724075456464,-356.77082187,0.00016986,2]
[335291565,1724075456473,-500.0,0.00016986,2]
[335291566,1724075456483,-500.0,0.00016986,2]
[335291567,1724075456493,-500.0,0.00016986,2]
[335291568,1724075456503,-500.0,0.00016986,2]
[335291569,1724075456514,-500.0,0.00016986,2]
[335291570,1724075456524,-500.0,0.00016986,2]
[335291571,1724075456534,-607.58855017,0.00016986,2]
[335291572,1724075456544,-500.0,0.00016986,2]
[335291573,1724075456553,-500.0,0.00016986,2]
[335291574,1724075456563,-500.0,0.00016986,2]
[335291575,1724075456573,-500.0,0.00016986,2]
[335291576,1724075456582,-500.0,0.00016986,2]
[335291577,1724075456592,-500.0,0.00016986,2]
[335291578,1724075456601,-500.0,0.00016986,2]
[335291579,1724075456611,-500.0,0.00016986,2]
[335291580,1724075456619,-500.0,0.00016986,2]
[335291581,1724075456629,-500.0,0.00016986,2]
[335291582,1724075456637,-500.0,0.00016986,2]
[335291583,1724075456647,-500.0,0.00016986,2]
[335291584,1724075456656,-500.0,0.00016986,2]
[335291585,1724075456665,-500.0,0.00016986,2]
[335291586,1724075456674,-500.0,0.00016986,2]
[335291587,1724075456683,-542.25,0.00016986,2]
[335291588,1724075456693,-500.0,0.00016986,2]
[335291589,1724075456702,-201.721001,0.00016986,2]
[335291590,1724075456712,-500.0,0.00016986,2]
[335291591,1724075456722,-201.721001,0.00016986,2]
[335291592,1724075456733,-500.0,0.00016986,2]
[335291593,1724075456742,-500.0,0.00016986,2]
[335291594,1724075456752,-500.0,0.00016986,2]
[335291595,1724075456762,-500.0,0.00016986,2]
[335291596,1724075456771,-607.41752608,0.00016986,2]
[335291597,1724075456781,-500.0,0.00016986,2]
[335291598,1724075456791,-500.0,0.00016986,2]
[335291599,1724075456801,-151.0,0.00016986,2]
[335291600,1724075456810,-500.0,0.00016986,2]
[335291601,1724075456820,-1271.84,0.00016986,2]
[335291602,1724075456829,-500.0,0.00016986,2]
[335291603,1724075456839,-500.0,0.00016986,2]
[335291604,1724075456848,-551.76661343,0.00016986,2]
[335291605,1724075456858,-500.0,0.00016986,2]
[335291606,1724075456867,-500.0,0.00016986,2]
[335291607,1724075456877,-500.0,0.00016986,2]
[335291608,1724075456886,-500.0,0.00016986,2]
[335291609,1724075456895,-500.0,0.00016986,2]
[335291610,1724075456905,-641.771822,0.00016986,2]
[335291611,1724075456915,-641.771822,0.00016986,2]
[335291612,1724075456924,-500.0,0.00016986,2]
[335291613,1724075456934,-500.0,0.00016986,2]
[335291614,1724075456944,-213.593325,0.00016986,2]
[335291615,1724075456953,-500.0,0.00016986,2]
[335291616,1724075456962,-213.593325,0.00016986,2]
[335291617,1724075456971,-951.9,0.00016986,2]
[335291618,1724075456981,-500.0,0.00016986,2]
[335291619,1724075456990,-500.0,0.00016986,2]
[335291620,1724075456999,-500.0,0.00016986,2]
[335291621,1724075457009,-500.0,0.00016986,2]
[335291622,1724075457018,-500.0,0.00016986,2]
[335291623,1724075457028,-433.37737187,0.00016986,2]
[335291624,1724075457038,-500.0,0.00016986,2]
[335291625,1724075457047,-161.61089801,0.00016986,2]
[335291626,1724075457056,-500.0,0.00016986,2]
[335291627,1724075457065,-500.0,0.00016986,2]
[335291628,1724075457075,-500.0,0.00016986,2]
[335291629,1724075457084,-5.93691365,0.00016986,2]
[335291651,1724076551138,-250.0,8.164e-05,2]
[335291652,1724076551160,-250.0,8.246e-05,2]
[335291653,1724076551183,-250.0,8.329e-05,2]
[335291654,1724076551205,-250.0,8.352e-05,2]
[335291655,1724076551227,-250.0,8.375e-05,2]
[335291656,1724076551249,-250.0,8.398e-05,2]
[335291657,1724076551281,-250.0,8.421e-05,2]
[335291658,1724076551303,-250.0,8.444e-05,2]
[335291659,1724076551325,-250.0,8.466e-05,2]
[335291660,1724076551347,-250.0,8.489e-05,2]
[335291661,1724076551369,-250.0,8.512e-05,2]
[335291662,1724076551391,-300.0,8.52e-05,2]
[335291663,1724076551412,-300.0,8.52e-05,2]
[335291664,1724076551433,-25922.20961502,8.521e-05,2]
[335291665,1724076551455,-250.0,8.535e-05,2]
[335291666,1724076551477,-250.0,8.558e-05,2]
[335291667,1724076551499,-250.0,8.581e-05,2]
[335291668,1724076551520,-250.0,8.603e-05,2]
[335291669,1724076551542,-250.0,8.626e-05,2]
[335291670,1724076551562,-250.0,8.649e-05,2]
[335291671,1724076551583,-250.0,8.672e-05,2]
[335291672,1724076551604,-250.0,8.695e-05,2]
[335291673,1724076551626,-250.0,8.718e-05,2]
[335291674,1724076551649,-250.0,8.741e-05,2]
[335291675,1724076551670,-250.0,8.763e-05,2]
[335291676,1724076551691,-420.0,9.372e-05,2]
[335291677,1724076551712,-420.0,9.372e-05,2]
[335291678,1724076551735,-24900.0,9.497e-05,2]
[335291679,1724076551758,-167.107481,9.772e-05,2]
[335291680,1724076551779,-167.107481,9.789e-05,2]
[335291681,1724076551799,-167.107481,9.805e-05,2]
[335291682,1724076551820,-167.107481,9.821e-05,2]
[335291683,1724076551841,-587.0,0.00010309,2]
[335291684,1724076551862,-587.0,0.00010309,2]
[335291685,1724076551884,-43478.74686151,0.00010739,2]
[335291686,1724076551905,-200.0,0.00010926,2]
[335291687,1724076551925,-196.81150092,0.00010958,2]
[335291688,1724076555637,273.37336231,9.9e-05,2]
[335291689,1724076563717,273.37336231,9.9e-05,2]
[335291690,1724076564873,170.86,0.00010959,2]
[335291691,1724076568695,196.81150092,0.00010739,2]
[335291698,1724076571128,-823.0,0.0001134,2]
[335291699,1724076571151,-823.0,0.0001134,2]
[335291700,1724076571172,-1766.14104507,0.00011842,2]
[335291701,1724076571194,-1613.45959463,0.00011842,2]
[335291702,1724076571217,-29555.630268,0.000119,2]
[335291703,1724076571240,-850.86713135,0.0001212,2]
[335291704,1724076571263,-213.13084709,0.0001212,2]
[335291705,1724076571291,-933.80144992,0.00012163,2]
[335291706,1724076571312,-400.0,0.00012296,2]
[335291707,1724076572417,1850.58035834,0.00011842,3]
[335291708,1724076573328,273.37336231,9.9e-05,2]
[335291709,1724076573443,898.70545475,0.0001212,2]
[335291710,1724076575402,854.35,0.00010959,2]
[335291711,1724076579174,600.88577429,0.00012163,2]
[335291712,1724076581472,273.37336231,9.9e-05,2]
[335291713,1724076590461,273.37336231,9.9e-05,2]
[335291716,1724076598990,273.37336231,9.9e-05,2]
[335291717,1724076603224,196.66364967,0.00012,2]
[335291718,1724076607731,498.80271404,0.00012,2]
[335291719,1724076608042,273.37336231,9.9e-05,2]
[335291720,1724076614779,932.58320196,0.00012,2]
[335291721,1724076616045,273.37336231,9.9e-05,2]
[335291722,1724076617020,1021.27246398,0.00012,2]
[335291723,1724076620937,600.88577429,0.00012,2]
[335291725,1724076625677,273.37336231,9.9e-05,2]
[335291726,1724076625844,1929.22280424,9.9e-05,2]
[335291727,1724076628980,174.79341061,0.00012163,2]
[335291860,1724076634273,273.37336231,9.9e-05,2]
[335291873,1724076638411,2142.81108391,0.00012163,2]
[335291907,1724076638779,-300.0,0.00012355,2]
[335291908,1724076638797,-157.44180814,0.00012355,2]
[335291909,1724076638882,-142.55819186,0.00012355,2]
[335291910,1724076638892,-2142.81108391,0.00012356,2]
[335291911,1724076638902,-157.10732019,0.00012356,2]
[335291912,1724076638913,-665.46668942,0.00012356,2]
[335291913,1724076638924,-210.23989812,0.00012356,2]
[335291914,1724076638934,-154.69833824,0.00012356,2]
[335291915,1724076638945,-320.27103328,0.00012516,2]
[335291916,1724076638955,-249.80759006,0.00012516,2]
[335291917,1724076638966,-190.07446844,0.00012516,2]
[335291918,1724076638975,-237.09128022,0.00012516,2]
[335291919,1724076638985,-290.72238344,0.00012516,2]
[335291920,1724076638994,-728.79489661,0.00012516,2]
[335291921,1724076639004,-780.05358786,0.00012516,2]
[335291922,1724076639014,-180.91774597,0.00012551,2]
[335291923,1724076639023,-307.69428485,0.00012551,2]
[335291924,1724076639033,-156.78863559,0.00012551,2]
[335291925,1724076639044,-307.69428485,0.00012551,2]
[335291926,1724076639055,-450.32306863,0.00012551,2]
[335291927,1724076639065,-305.66806289,0.00012629,2]
[335291928,1724076639074,-154.69833824,0.00012689,2]
[335291929,1724076639084,-259.31425734,0.00012779,2]
[335291930,1724076639094,-200.0,0.000128,2]
[335291931,1724076639103,-200.0,0.000128,2]
[335291932,1724076639116,-188.3935203,0.00012871,2]
[335291933,1724076639128,-493.30764145,0.00012971,2]
[335291934,1724076639137,-342.04800792,0.00012971,2]
[335291935,1724076639148,-521.29251267,0.00012985,2]
[335291936,1724076639159,-185.16536677,0.00012991,2]
[335291937,1724076639168,-862.44048895,0.00013,2]
[335291938,1724076639178,-416.18906705,0.00013051,2]